[Event "FRA-ch Teams Top 16-Haute 2022"]
[Site "Chartres"]
[Date "2022.06.19"]
[Round "11.6"]
[White "Barbot, Pierre"]
[Black "Savina, Anastasia"]
[Result "0-1"]
[ECO "E90"]
[WhiteElo "2450"]
[BlackElo "2348"]
[Annotator "TA"]
[PlyCount "109"]
[EventDate "2022.06.16"]
[EventType "team-tourn"]
[EventCountry "FRA"]
[SourceTitle "playchess.com"]
[Source "ChessBase"]
[SourceQuality "1"]
[TimeControl "40/5400+30:1800+30"]

{[%evp 12,109,30,18,18,15,15,20,18,10,11,3,13,0,0,-16,-11,-20,-20,-51,-45,-45,-43,-42,-32,-264,-244,-389,-389,-415,-433,-327,-281,-279,-239,-319,-274,-286,0,-274,-236,-227,-228,-150,-155,-458,-443,-860,-860,-603,156,159,154,156,156,159,120,92,87,48,264,64,72,58,134,79,206,214,369,369,369,319,296,63,60,78,75,44,47,0,70,43,61,0,0,0,0,-257,-267,-663,-661,-645,-623,-607,-552,-29984,-29985,-29984,-29985,-29994]} 1. d4 {[%emt 0:01:18]} Nf6 {[%emt 0:00:14]} 2. c4 {[%emt 0:00:05]} g6 {[%emt 0:00:05]} 3. Nc3 {[%emt 0:00:04]} Bg7 {[%emt 0:00:04]} 4. e4 {[%emt 0:00:04]} d6 {[%emt 0:00:03]} 5. Nf3 {[%emt 0:00:06]} O-O {[%emt 0:00:29]} 6. Bg5 {[%emt 0:00:05]} h6 {[%emt 0:08:29]} 7. Be3 {[%emt 0:00:17]} Ng4 {[%emt 0:01:31] E90: King's Indian: Classical: Early deviations and 6 h3.} 8. Bd2 {[%emt 0:00:06]} e5 {[%emt 0:04:23]} 9. d5 {[%emt 0:02:20]} f5 {[%emt 0:01:43] The position is equal.} 10. h3 {[%emt 0:04:28]} Nf6 {[%emt 0:08:34]} 11. exf5 {[%emt 0:01:23]} gxf5 {[%emt 0:00:14] [#]} 12. Qc2 $146 {[%emt 0:01:01]} ({Predecessor:} 12. Be2 Na6 13. O-O Nc5 14. Rc1 a5 15. Be3 Na6 16. Bd2 f4 17. Qc2 Nc5 18. Nh2 {0-1 (76) Aupi Royo,J (2382)-Ingersol,H (2408) ICCF email 2013}) 12... Na6 {[%emt 0:02:09]} 13. O-O-O {[%emt 0:03:07]} Nb4 {[%emt 0:05:34]} 14. Qb3 {[%emt 0:00:15]} a5 {[%emt 0:00:13]} 15. a3 {[%emt 0:00:04]} Na6 {[%emt 0:00:09][%cal Bb4a6,Ba6c5,Bc5b3][%mdl 32]} 16. Qc2 $1 {[%emt 0:00:19]} Ne4 {[%emt 0:05:38]} 17. Nxe4 {[%emt 0:06:37]} fxe4 {[%emt 0:00:11]} 18. Qxe4 {[%emt 0:00:05]} (18. Ne1 $15) 18... Nc5 $19 {[%emt 0:03:18]} (18... Bf5 $2 19. Qe3 $17) 19. Qh4 {[%emt 0:02:33]} (19. Qg6 $2 Bf5 20. Qxf5 Rxf5 $19) (19. Qe3 {only move.} Bf5 20. b4 axb4 21. Bxb4) 19... Bf5 {[%emt 0:05:15][%cal Rc5b3]} (19... Qxh4 20. Nxh4 Bf6 21. g3 $17 (21. Ng6 $2 Bf5 $19)) 20. Re1 {[%emt 0:03:34]} Qd7 {[%emt 0:20:59] And now ...Qa4 would win.} 21. Re3 {[%emt 0:18:14]} Qa4 {[%emt 0:06:49][%csl Gf5][%cal Ra4c2]} 22. Ne1 {[%emt 0:00:24] Prevents Qc2+.} Nb3+ $40 {[%emt 0:11:38][%mdl 128] Black wants a kill.} 23. Kd1 {[%emt 0:02:23]} Nd4+ {[%emt 0:05:52]} 24. Kc1 {[%emt 0:00:59]} Nb3+ {[%emt 0:03:33]} 25. Kd1 {[%emt 0:00:24]} Bh7 {[%emt 0:03:13]} 26. Rg3 {[%emt 0:16:47]} Nxd2+ {[%emt 0:00:58]} 27. Kxd2 {[%emt 0:00:05]} Kh8 $1 {[%emt 0:01:53] Black is more active.} (27... Rxf2+ 28. Be2 Raf8 29. Rf1 Rxf1 30. Bxf1 $11) 28. Qe7 $2 {[%emt 0:06:41]} (28. Be2 $17) 28... Rxf2+ {[%emt 0:00:12]} (28... Bf6 29. Qxc7 b5 30. Bd3 $17 (30. Qxd6 $2 bxc4 31. Qc6 Bg5+ 32. Rxg5 Qb3 $19)) 29. Ke3 {[%emt 0:00:54]} (29. Be2 $142 Rxe2+ 30. Kxe2 Qxc4+ 31. Kd1) 29... Bf6 {[%emt 0:00:35]} (29... Bf8 30. Qxc7 Rf6 31. Qxb7 $17 (31. Bd3 $2 Bxd3 32. Nxd3 h5 $19)) 30. Qxc7 {[%emt 0:00:02] [#]} Rxb2 $2 {[%emt 0:00:54]} (30... Rf8 $1 $19 31. Qxd6 Qe8 $1) 31. Qxd6 $16 {[%emt 0:00:19][%cal Rd6f6]} Qb3+ {[%emt 0:00:36]} 32. Bd3 $1 {[%emt 0:00:24][%cal Rd6f6]} Qb6+ {[%emt 0:00:28]} (32... Bg7 $2 33. Rxg7 $1 {[%mdl 512]} Bxd3 34. Nxd3 $1 $18) 33. Qxb6 {[%emt 0:00:06]} Rxb6 {[%emt 0:00:02]} 34. Bxh7 {[%emt 0:03:38]} Kxh7 {[%emt 0:00:01]} 35. Ke4 {[%emt 0:02:39] Black must now prevent Nd3.} Bh4 $2 {[%emt 0:01:15] [#]} (35... Rb1 $14) 36. Rc3 $2 {[%emt 0:00:42]} ({White has to play} 36. Rg4 $1 $18 {[%cal Rg4h4]} Be7 37. Rf1 (37. Kxe5 Re8 $11) 37... Bxa3 38. Rf7+ (38. Kxe5 h5 $11) 38... Kh8 39. Nd3) 36... Rb1 $14 {[%emt 0:00:34]} 37. g3 {[%emt 0:00:38]} Bg5 {[%emt 0:00:13]} (37... Be7 $14) 38. Rc2 {[%emt 0:00:04]} (38. c5 $142) 38... Rf8 {[%emt 0:00:52]} (38... Rc8 $16 {keeps fighting.}) 39. Rg1 $18 {[%emt 0:03:33]} Be7 $2 {[%emt 0:00:34] [#]} (39... Rb3 {was worth a try.} 40. Nd3 (40. Kxe5 Bf6+ 41. Kd6 Bd4 $17) 40... b6) 40. c5 $1 {[%emt 0:01:00]} Rc8 {[%emt 0:00:30]} 41. d6 {[%emt 0:34:41]} Bf8 {[%emt 0:09:27]} (41... Bxd6 $2 42. cxd6 Rd8 43. Rd2 $18) 42. Kd5 $2 {[%emt 0:00:00]} ({Less strong is} 42. Kxe5 Re8+ 43. Kf5 Bg7 $16) (42. Nf3 $18 Rxg1 43. Nxg1) 42... Rd1+ $14 {[%emt 0:09:34]} 43. Ke6 {[%emt 0:00:00] Strongly threatening Nf3.} e4 {[%emt 0:01:19][%cal Ob7b6,Be5e4,Be4e3,Be3e2][%mdl 32] [#] Inhibits Nf3.} (43... Bxd6 $2 44. cxd6 Rxc2 45. Nxc2 $18) 44. Nf3 $1 {[%emt 0:00:00]} Rd3 {[%emt 0:01:39]} 45. Ne1 {[%emt 0:00:00]} Rd1 {[%emt 0:01:08][%cal Ob7b6]} 46. Rf1 $1 {[%emt 0:00:00]} Kg8 {[%emt 0:02:02]} 47. Rcf2 {[%emt 0:04:07]} ({Better is} 47. Rxf8+ $1 $14 Rxf8 48. Re2) 47... e3 $11 {[%emt 0:02:54]} 48. Rf5 {[%emt 0:00:14] Hoping for Kd7.} e2 {[%emt 0:00:28][%mdl 64] Deflection. The board is on fire.} 49. R1f2 {[%emt 0:00:32][%mdl 8192]} Rxe1 $19 {[%emt 0:01:37]} 50. d7 $2 {[%emt 0:00:32]} (50. Kd7 Rf1 51. Rxf1 (51. Kxc8 $2 {too greedy.} Rxf2 52. Re5 Rf5 $19) 51... exf1=R 52. Rxf1 Rxc5 53. Rd1) 50... Rc6+ {[%emt 0:00:34]} 51. Ke5 {[%emt 0:00:11]} Rxc5+ {[%emt 0:04:26]} 52. Ke4 {[%emt 0:01:15]} Rxf5 {[%emt 0:00:05]} 53. d8=Q {[%emt 0:00:05]} Rxf2 {[%emt 0:00:08]} 54. Qd5+ {[%emt 0:00:04]} Rf7 {[%emt 0:00:19]} 55. Kd4 {[%emt 0:01:23] What a fight!  Weighted Error Value: White=0.68/Black=0.33} 0-1

[Event "FRA-ch Teams Top 16-Haute 2022"]
[Site "Chartres"]
[Date "2022.06.19"]
[Round "11.7"]
[White "Pourquet, Matthieu"]
[Black "Milliet, Sophie"]
[Result "1/2-1/2"]
[ECO "A13"]
[WhiteElo "2178"]
[BlackElo "2410"]
[Annotator "TA"]
[PlyCount "59"]
[EventDate "2022.06.16"]
[EventType "team-tourn"]
[EventCountry "FRA"]
[SourceTitle "playchess.com"]
[Source "ChessBase"]
[SourceQuality "1"]
[TimeControl "40/5400+30:1800+30"]

{[%evp 9,59,5,16,12,18,9,7,0,3,0,0,6,5,0,9,-20,0,-8,9,0,68,68,60,19,53,47,66,34,55,14,23,0,0,-22,0,-22,-10,-28,0,-22,-6,-36,18,0,13,-21,0,-9,-24,-18,0,0]} 1. Nf3 {[%emt 0:00:13]} Nf6 {[%emt 0:00:10]} 2. c4 {[%emt 0:00:11]} e6 {[%emt 0:01:19]} 3. g3 {[%emt 0:04:26]} d5 {[%emt 0:00:30]} 4. Bg2 {[%emt 0:00:06]} dxc4 {[%emt 0:00:45]} 5. Qa4+ {[%emt 0:01:24]} Bd7 {[%emt 0:00:19]} 6. Qxc4 {[%emt 0:00:07] A13: English Opening: 1...e6.} c5 {[%emt 0:00:10]} 7. Ne5 {[%emt 0:03:56]} Qc8 {[%emt 0:00:06]} 8. O-O {[%emt 0:01:42]} Nc6 {[%emt 0:01:10]} 9. Nxd7 {[%emt 0:00:16]} (9. d4 {is interesting.} cxd4 10. Bxc6 Bxc6 11. Rd1) 9... Qxd7 {[%emt 0:03:16]} 10. Nc3 {[%emt 0:09:22]} Be7 {[%emt 0:07:08]} 11. Qa4 {[%emt 0:00:11]} Rc8 {[%emt 0:08:31]} 12. a3 {[%emt 0:00:59][%cal Ob2b4]} O-O {[%emt 0:00:49]} 13. b4 {[%emt 0:01:34]} c4 {[%emt 0:08:26] [#]} 14. Rd1 $146 {[%emt 0:13:11]} ({Predecessor:} 14. Qb5 Rfd8 15. Rb1 b6 16. Rd1 Nd5 17. Bb2 Nxc3 18. Bxc3 Nd4 19. Qxd7 Rxd7 20. Kf1 {1-0 (51) Aronian,L (2815)-Riazantsev,A (2692) Dubai 2014}) 14... Ng4 {[%emt 0:14:26]} (14... a6 $11) 15. h3 $14 {[%emt 0:04:03]} Nge5 {[%emt 0:01:56]} 16. Bb2 {[%emt 0:19:16]} a6 {[%emt 0:10:40]} 17. f4 {[%emt 0:11:17]} Ng6 {[%emt 0:00:14]} 18. e3 {[%emt 0:03:52]} (18. d4 $5 {[%cal Rd4d5]}) 18... Bf6 {[%emt 0:07:43]} 19. Qc2 {[%emt 0:02:13]} Rfd8 {[%emt 0:04:25]} 20. Be4 {[%emt 0:00:36]} Nce7 {[%emt 0:01:25]} 21. Kh2 {[%emt 0:02:33]} Qc7 {[%emt 0:04:59]} (21... b5 {looks sharper.} 22. Rab1 Nf5 23. a4 Rb8) 22. Rf1 {[%emt 0:02:25]} Rd7 {[%emt 0:00:56]} (22... b5 {feels hotter.} 23. Rad1 Nf5 24. h4 h6) 23. Rf2 {[%emt 0:00:55]} Rcd8 {[%emt 0:00:30][%cal Oe7f5]} 24. Raf1 {[%emt 0:00:22]} Nf8 {[%emt 0:09:22]} 25. Kg1 {[%emt 0:00:31]} Qd6 {[%emt 0:00:49]} ({Black should play} 25... b5 $15) 26. Bf3 {[%emt 0:02:36] Black must now prevent Ne4. A strong pair of Bishops.} Qc7 {[%emt 0:03:13]} 27. Rg2 {[%emt 0:01:11]} Nf5 {[%emt 0:01:27]} 28. Be4 {[%emt 0:01:53]} Nd6 {[%emt 0:02:05]} 29. Bf3 {[%emt 0:00:37]} Nf5 {[%emt 0:00:05]} 30. Rff2 {[%emt 0:02:36] Weighted Error Value: White=0.13 (very precise) /Black=0.16 (very precise)} 1/2-1/2

[Event "FRA-ch Teams Top 16-Haute 2022"]
[Site "Chartres"]
[Date "2022.06.19"]
[Round "11.8"]
[White "Demuth, Adrien"]
[Black "Thomas, Anysia"]
[Result "1-0"]
[ECO "B06"]
[WhiteElo "2493"]
[BlackElo "2126"]
[Annotator "TA"]
[PlyCount "84"]
[EventDate "2022.06.16"]
[EventType "team-tourn"]
[EventCountry "FRA"]
[SourceTitle "playchess.com"]
[Source "ChessBase"]
[SourceQuality "1"]
[TimeControl "40/5400+30:1800+30"]

{[%evp 9,84,27,29,0,6,0,13,0,0,0,15,10,30,27,79,79,79,79,79,70,80,72,79,86,79,86,81,88,195,191,237,232,238,230,226,220,225,47,56,64,62,52,40,41,44,49,46,0,31,0,42,26,53,44,60,27,32,27,33,28,70,104,297,302,571,555,773,717,764,763,739,716,778,1029,5616,5450,1078]} 1. Nf3 {[%emt 0:00:03]} g6 {[%emt 0:01:26]} 2. e4 {[%emt 0:00:30]} c5 {[%emt 0:00:09]} 3. c3 {[%emt 0:00:28]} d5 {[%emt 0:00:10]} 4. e5 {[%emt 0:00:15]} Bg7 {[%emt 0:02:41]} 5. d4 {[%emt 0:00:05]} a6 {[%emt 0:02:02] [#]} 6. dxc5 $146 {[%emt 0:14:51] B06: Modern Defence.} ({Predecessor:} 6. h3 f6 7. Be2 Nc6 8. exf6 Nxf6 9. dxc5 Ne4 10. Be3 O-O 11. O-O Bf5 12. Nbd2 e5 13. Nxe4 Bxe4 {1-0 (36) Estrada Nieto,J (2253)-Yanayt,E (2073) Chess.com INT 2022}) 6... Nc6 {[%emt 0:01:11]} 7. Bf4 {[%emt 0:00:07]} Bg4 {[%emt 0:03:56]} 8. Be2 {[%emt 0:01:21] The position is equal.} Bxf3 {[%emt 0:02:07]} 9. Bxf3 {[%emt 0:00:42]} e6 {[%emt 0:00:07]} 10. O-O {[%emt 0:15:14][%cal Oc3c4]} Nxe5 {[%emt 0:02:59]} (10... Bxe5 {is interesting.} 11. Bxe5 Nxe5 12. Bxd5 exd5 13. Re1 Qe7) 11. Bxd5 {[%emt 0:20:04]} Qxd5 {[%emt 0:08:17]} (11... exd5 $11 12. Bxe5 Bxe5) 12. Qxd5 $16 {[%emt 0:00:23]} exd5 {[%emt 0:00:03]} 13. Bxe5 {[%emt 0:00:13]} Bxe5 {[%emt 0:00:12]} 14. Re1 {[%emt 0:00:03]} f6 {[%emt 0:00:08] Hoping for ...Kf7.} 15. f4 $1 {[%emt 0:00:05][%mdl 64] Pin} Kf7 {[%emt 0:00:23]} 16. fxe5 {[%emt 0:00:06]} Re8 {[%emt 0:00:05]} 17. c4 {[%emt 0:13:09]} dxc4 {[%emt 0:13:59]} 18. Nd2 {[%emt 0:00:18]} c3 {[%emt 0:14:24] [#]} (18... Rxe5 $16 19. Nxc4 Rxc5 20. Nd6+ Kg7) 19. Nc4 $1 $18 {[%emt 0:05:50]} (19. bxc3 $6 Rxe5 20. Rxe5 fxe5 $16) 19... cxb2 {[%emt 0:01:38]} (19... Re7 $142 20. Nd6+ (20. bxc3 fxe5 21. Nxe5+ Kg7 $16) 20... Kf8 21. exf6 (21. bxc3 fxe5 22. Rab1 Nf6 $16) 21... Nxf6) 20. Rab1 {[%emt 0:00:07] Nd6+ is the strong threat.} Re7 {[%emt 0:01:24]} 21. Rxb2 {[%emt 0:00:23]} fxe5 {[%emt 0:00:56]} 22. Nd6+ {[%emt 0:04:43]} ({Don't play} 22. Nxe5+ $6 Kg7 $16) (22. Rxe5 $6 Rxe5 23. Nxe5+ Ke6 $16) 22... Kg7 {[%emt 0:11:36] [#]} 23. Rxb7 $2 {[%emt 0:01:58]} ({Only move:} 23. Reb1 $1 $18) 23... Rxb7 $14 {[%emt 0:00:05]} 24. Nxb7 $18 {[%emt 0:00:02][%mdl 4096] Endgame KRN-KRN} Ne7 {[%emt 0:00:12]} 25. Rxe5 {[%emt 0:02:54]} Kf6 {[%emt 0:00:07]} 26. Re3 {[%emt 0:00:39]} Rb8 {[%emt 0:01:48]} 27. Rb3 {[%emt 0:03:11]} Ke5 {[%emt 0:01:41]} 28. Re3+ {[%emt 0:03:26]} Kf6 {[%emt 0:00:20]} 29. Rb3 {[%emt 0:04:28]} Ke5 {[%emt 0:00:16]} 30. Kf2 {[%emt 0:00:03]} Kd4 {[%emt 0:05:42]} 31. Kg3 {[%emt 0:01:48]} Kd5 {[%emt 0:03:49]} 32. Kh3 {[%emt 0:03:25]} (32. Rb6 $5 {[%cal Rb6d6]}) 32... Nc6 {[%emt 0:06:28]} 33. Rd3+ {[%emt 0:02:06]} Kc4 $1 {[%emt 0:12:42]} (33... Nd4 $2 34. Na5 $18) 34. Rd7 {[%emt 0:00:05]} h5 {[%emt 0:00:44]} 35. Rd6 {[%emt 0:01:09][%csl LRc6,LRg6] White is more active.} Rxb7 $2 {[%emt 0:01:39] This move loses the game for Black.} (35... Ne7 $16 {might work better.}) 36. Rxc6 $16 {[%emt 0:00:02] KR-KR} Rg7 $2 {[%emt 0:01:47]} (36... g5 37. Rh6 (37. Rxa6 g4+ 38. Kh4 Kxc5 $18) 37... g4+ 38. Kg3 Rb2) 37. Rxa6 $18 {[%emt 0:00:37] White is clearly winning.} Kxc5 {[%emt 0:00:16]} 38. Kh4 {[%emt 0:00:03]} Kb5 {[%emt 0:00:17]} 39. Rf6 {[%emt 0:00:06]} Kc5 {[%emt 0:00:16]} 40. Kg5 {[%emt 0:00:09]} Ra7 {[%emt 0:00:12]} 41. Rxg6 {[%emt 0:30:13]} Rxa2 {[%emt 0:30:18]} 42. Kxh5 {[%emt 0:00:04]} Kd5 {[%emt 0:02:58] Weighted Error Value: White=0.17 (very precise) /Black=0.25 (precise)} 1-0

[Event "FRA-ch Teams Top 16-Haute 2022"]
[Site "Chartres"]
[Date "2022.06.19"]
[Round "11.10"]
[White "Kamsky, Gata"]
[Black "Mendonca, Leon Luke"]
[Result "1-0"]
[ECO "C00"]
[WhiteElo "2661"]
[BlackElo "2551"]
[Annotator "TA"]
[PlyCount "91"]
[EventDate "2022.06.16"]
[EventType "team-tourn"]
[EventCountry "FRA"]
[SourceTitle "playchess.com"]
[Source "ChessBase"]
[SourceQuality "1"]
[TimeControl "40/5400+30:1800+30"]

{[%evp 17,91,-14,0,-25,-23,-38,-40,-43,-12,-11,0,0,0,0,0,0,0,0,58,59,49,37,45,0,0,0,0,-8,-16,-6,0,0,0,0,76,46,51,18,100,93,87,104,101,102,98,33,107,106,108,110,145,148,143,129,149,126,175,166,202,152,268,260,380,356,577,570,570,568,633,610,823,806,1175,1175,1108,894]} 1. Nf3 {[%emt 0:00:06]} Nf6 {[%emt 0:03:18]} 2. g3 {[%emt 0:00:23]} d5 {[%emt 0:01:36]} 3. Bg2 {[%emt 0:00:20]} c5 {[%emt 0:00:33]} 4. O-O {[%emt 0:01:42]} e6 {[%emt 0:00:37]} 5. d3 {[%emt 0:02:29]} Be7 {[%emt 0:03:22]} 6. Nbd2 {[%emt 0:02:20]} Nc6 {[%emt 0:01:18]} 7. e4 {[%emt 0:00:09]} O-O {[%emt 0:00:40]} 8. Re1 {[%emt 0:02:05]} Qc7 {[%emt 0:05:14]} 9. c3 {[%emt 0:09:57]} Rd8 {[%emt 0:11:21]} 10. e5 {[%emt 0:08:08] C00: French: Unusual White 2nd moves.} Nd7 {[%emt 0:00:27]} 11. Qe2 {[%emt 0:00:16]} b5 {[%emt 0:02:05][%cal Bb7b5,Bb5b4][%mdl 32]} 12. a4 $5 {[%emt 0:03:41][%mdl 4] Black is slightly better. Leaves trodden paths.} b4 {[%emt 0:14:47]} 13. c4 $1 {[%emt 0:01:39] [#]} dxc4 $146 {[%emt 0:01:35]} ({Predecessor:} 13... Nf8 14. Nb3 Na5 15. Nxa5 Qxa5 16. cxd5 exd5 17. b3 Ne6 18. h4 Ba6 19. Qc2 Rac8 {0-1 (42) More,G (2129)-Hidegh,E (2108) Sarospatak 2000}) 14. Nxc4 {[%emt 0:04:55]} h6 {[%emt 0:26:13] Inhibits Ng5.} 15. Qe4 {[%emt 0:01:14]} Bb7 {[%emt 0:06:17][%cal Oc6e5]} 16. Qg4 $1 {[%emt 0:00:07]} Kf8 $1 {[%emt 0:03:19]} 17. Qh5 {[%emt 0:05:35]} Nb6 {[%emt 0:02:59]} (17... Na5 $1 $11) 18. Nd6 $14 {[%emt 0:04:58]} Bxd6 {[%emt 0:01:23]} 19. exd6 {[%emt 0:00:06]} Qxd6 {[%emt 0:00:14]} 20. a5 {[%emt 0:01:31] [#] Hoping for Bxh6.} (20. Bxh6 $5 gxh6 21. Qxh6+ Ke8 22. Ng5 $14) 20... Nd5 {[%emt 0:00:55]} 21. a6 $40 {[%emt 0:00:06][%mdl 128] White mounts an attack.} Bc8 {[%emt 0:00:40]} 22. Ng5 {[%emt 0:20:31][%csl Gg5][%cal Rh5f7]} Qe7 {[%emt 0:10:16]} ({Don't take} 22... hxg5 23. Qh8+ Ke7 24. Qxg7 $16 (24. Bxg5+ Kd7 $11)) 23. Ne4 {[%emt 0:08:01][%cal Oc1g5]} Rb8 {[%emt 0:01:21] Strongly threatening ...Rb6.} 24. Bg5 {[%emt 0:00:45]} f6 {[%emt 0:00:44]} 25. Nxf6 {[%emt 0:00:08]} Nxf6 {[%emt 0:00:43]} (25... hxg5 $11 26. Nxd5 Qf7) 26. Bxf6 $16 {[%emt 0:00:06]} Qxf6 {[%emt 0:00:35]} 27. Bxc6 {[%emt 0:00:34]} Rb6 {[%emt 0:00:45]} (27... Qg5 $11 {remains equal.} 28. Qxg5 hxg5) 28. Qxc5+ {[%emt 0:00:11]} Qe7 {[%emt 0:00:29]} 29. Qc4 {[%emt 0:01:23] White is much more active.} Qc7 {[%emt 0:00:42]} 30. Rec1 {[%emt 0:00:19]} Kg8 {[%emt 0:00:29]} 31. Qh4 {[%emt 0:05:20]} Qd6 {[%emt 0:00:30] Black is now going downhill.} (31... Rxa6 $14 32. Rab1 Qb6) 32. Be4 {[%emt 0:00:22]} Bxa6 {[%emt 0:00:30]} 33. Qg4 {[%emt 0:00:06] Threatens to win with Qg6.} e5 {[%emt 0:00:29]} 34. Qf5 {[%emt 0:01:18]} g6 {[%emt 0:00:28]} 35. Qf3 {[%emt 0:00:57]} Kg7 {[%emt 0:00:30]} 36. h4 {[%emt 0:00:52]} h5 {[%emt 0:00:34]} (36... Rd7 $16 {is a better defense.}) 37. Ra5 $18 {[%emt 0:00:17]} Rd7 {[%emt 0:00:28]} 38. Qe3 {[%emt 0:02:10] Black must now prevent Rd5.} Qf6 {[%emt 0:00:32]} (38... Rf7 $16 {was necessary.} 39. Rcc5 Qd4) 39. Rac5 {[%emt 0:04:02] And now Rc6 would win.} Rbd6 {[%emt 0:00:31]} (39... Qe7 $142 40. Rc6 Bb7) 40. Rc7 {[%emt 0:00:09]} Qe7 {[%emt 0:00:27]} (40... Bb5 41. Qxa7 Qf7 42. Rxd7 Rxd7) 41. Rxd7 {[%emt 0:31:28] White is clearly winning.} Qxd7 {[%emt 0:05:10]} 42. Qg5 {[%emt 0:00:00]} Bb5 {[%emt 0:19:40]} 43. Qxe5+ {[%emt 0:00:00]} Kf7 {[%emt 0:00:30]} 44. Qh8 {[%emt 0:00:00]} Bxd3 {[%emt 0:01:23]} 45. Bxd3 {[%emt 0:00:00]} Rxd3 {[%emt 0:00:02] [#]} 46. Rc7 $3 {[%emt 0:00:00][%mdl 512] Weighted Error Value: White=0.08 (flawless) /Black=0.35} 1-0

[Event "FRA-ch Teams Top 16-Haute 2022"]
[Site "Chartres"]
[Date "2022.06.19"]
[Round "11.12"]
[White "Tiviakov, Sergei"]
[Black "Navrotescu, Andreea"]
[Result "1-0"]
[ECO "C07"]
[WhiteElo "2567"]
[BlackElo "2318"]
[Annotator "TA"]
[PlyCount "97"]
[EventDate "2022.06.16"]
[EventType "team-tourn"]
[EventCountry "FRA"]
[SourceTitle "playchess.com"]
[Source "ChessBase"]
[SourceQuality "1"]
[TimeControl "40/5400+30:1800+30"]

{[%evp 9,97,8,2,11,16,7,16,18,12,0,31,12,16,8,35,37,29,17,27,26,22,25,45,27,27,28,32,33,33,22,44,45,38,39,41,33,39,33,105,105,102,105,106,29,65,67,60,61,62,64,66,84,70,58,94,64,58,71,148,136,158,160,415,414,447,450,428,437,402,420,771,761,1035,1036,1195,1118,1404,1279,29969,29969,29978,29979,29979,29980,29978,29979,29985,29986,29986,29987]} 1. e4 {[%emt 0:00:05]} e6 {[%emt 0:00:03]} 2. d4 {[%emt 0:00:07]} d5 {[%emt 0:00:04]} 3. Nd2 {[%emt 0:00:07]} c5 {[%emt 0:00:06]} 4. exd5 {[%emt 0:00:09]} Qxd5 {[%emt 0:00:06]} 5. dxc5 {[%emt 0:00:17]} Nf6 {[%emt 0:00:07]} 6. Ngf3 {[%emt 0:01:37] C07: French Tarrasch: 3...c5, 4 Ngf3 and 4 exd5 Qxd5.} Qxc5 {[%emt 0:00:24]} 7. Bd3 {[%emt 0:00:08]} Be7 {[%emt 0:00:19]} 8. O-O {[%emt 0:00:20] The position is equal.} Nbd7 {[%emt 0:00:21]} 9. a4 {[%emt 0:01:21] [#]} a5 $146 {[%emt 0:06:04]} ({Predecessor:} 9... Qc7 10. a5 Nc5 11. Bc4 O-O 12. Qe2 Bd7 13. Ne5 Rac8 14. Ndf3 Rfd8 15. Nxd7 Ncxd7 {1-0 (58) Alekseenko,K (2696)-Indjic,A (2618) Chess.com INT 2020}) 10. Nb3 {[%emt 0:05:46][%cal Bd2b3,Bb3d4,Bd4b5,Bb5d6][%mdl 32]} Qc7 {[%emt 0:01:08]} 11. Nbd4 {[%emt 0:06:08]} Nc5 {[%emt 0:05:26]} 12. Nb5 {[%emt 0:03:05]} Qd8 {[%emt 0:04:40]} 13. Bc4 {[%emt 0:00:50]} Qxd1 {[%emt 0:02:50]} 14. Rxd1 {[%emt 0:00:09] [#] Hoping for Nc7+.} O-O {[%emt 0:00:04]} 15. Be3 {[%emt 0:05:34]} b6 {[%emt 0:02:38]} 16. Nd6 {[%emt 0:03:04]} Rd8 {[%emt 0:13:38]} 17. Bxc5 {[%emt 0:06:58]} bxc5 {[%emt 0:00:09]} 18. Nxc8 {[%emt 0:00:04]} Raxc8 {[%emt 0:00:56]} 19. c3 {[%emt 0:00:33]} Nd7 {[%emt 0:04:19]} 20. Bb5 $36 {[%emt 0:02:29][%mdl 2048] White has some pressure.} Nb6 {[%emt 0:00:27]} 21. Ne5 {[%emt 0:00:20]} Rxd1+ {[%emt 0:01:29]} 22. Rxd1 {[%emt 0:00:05]} Rd8 {[%emt 0:00:07]} 23. Rb1 {[%emt 0:00:16]} Rd5 {[%emt 0:13:05]} (23... Bd6 $14 24. Nc6 Ra8) 24. Nc6 $16 {[%emt 0:00:36][%csl LRa5,LRe7]} Bd8 {[%emt 0:00:02]} 25. Kf1 {[%emt 0:05:18]} Nc8 {[%emt 0:05:56]} 26. Ke2 {[%emt 0:04:20]} (26. Nxd8 $16 Rxd8 27. b4) 26... Ne7 {[%emt 0:05:47]} 27. Nxd8 {[%emt 0:03:33] White is more active.} Rxd8 {[%emt 0:00:04]} 28. Rd1 {[%emt 0:00:35]} Rxd1 {[%emt 0:00:35]} 29. Kxd1 $14 {[%emt 0:00:02][%mdl 4096] Endgame Strongly threatening Kc2. KB-KN} Nd5 $1 {[%emt 0:02:25]} 30. Kc2 {[%emt 0:05:55] And now Kd3 would win.} Kf8 {[%emt 0:00:17]} 31. Kd3 {[%emt 0:00:10] Black must now prevent Kc4.} Ke7 {[%emt 0:00:21]} 32. Kc4 {[%emt 0:04:33]} Kd6 {[%emt 0:00:11]} 33. Be8 $1 {[%emt 0:00:12]} f6 {[%emt 0:00:38] Black is on the road to losing.} ({Black should play} 33... f5) 34. Bh5 $16 {[%emt 0:00:46]} Nc7 {[%emt 0:01:21]} 35. Bf3 {[%emt 0:00:09]} e5 $2 {[%emt 0:07:37]} (35... f5 $16 {was necessary.} 36. b4 cxb4) 36. Be4 $18 {[%emt 0:02:08]} g6 {[%emt 0:00:55] [#]} 37. g4 {[%emt 0:00:07] Against f5} Ne6 {[%emt 0:04:50]} 38. Kb5 {[%emt 0:00:10]} Ng5 {[%emt 0:00:15]} 39. Bg2 {[%emt 0:00:48]} Ne6 {[%emt 0:09:15]} (39... c4 $142 40. Kxc4 f5 41. gxf5 gxf5) 40. Kxa5 {[%emt 0:00:22]} Nf4 {[%emt 0:00:04]} 41. Be4 {[%emt 0:32:01]} Nh3 {[%emt 0:30:58]} 42. f3 {[%emt 0:00:07]} Nf2 {[%emt 0:01:04]} 43. Kb5 {[%emt 0:00:55]} Ke6 {[%emt 0:08:59]} 44. a5 {[%emt 0:00:19][%cal Ba4a5,Ba5a6][%mdl 32] White mates.} f5 {[%emt 0:00:05]} 45. gxf5+ {[%emt 0:00:23]} gxf5 {[%emt 0:00:02]} 46. Bc6 {[%emt 0:00:40]} e4 {[%emt 0:00:00]} 47. fxe4 {[%emt 0:00:00]} Nxe4 {[%emt 0:00:00]} 48. Bxe4 {[%emt 0:00:00]} fxe4 {[%emt 0:00:00]} 49. a6 {[%emt 0:00:00] Weighted Error Value: White=0.06 (flawless) /Black=0.38} 1-0